Cogmind - Beta 9.6 @@@ ROGUE MODE // 2020.08.19 @ 13:24:32 Player: Sudoku Result: Destroyed by as-62798 with Assembled Blade Performance ------------- Evolutions (0) 0 Regions Visited (2) 400 Robots Destroyed (17) 85 Value Destroyed (370) 370 Prototype IDs (2) 40 Alien Tech Used (0) 0 Bonus (0) 0 TOTAL SCORE: 895 Bonus ------- None Cogmind --------- Core Integrity 0/250 Matter 300/300 Energy 94/100 System Corruption 0% Temperature Cool (0) Movement Rolling (100) Ox2 Location -10/Mines Parts ------- > --- POWER (1) -------- (None) > --- PROPULSION (2) --- Wheel Wheel > --- UTILITY (2) ------ Large Storage Unit High-capacity Storage Unit > --- WEAPON (2) ------- Assault Rifle Rocket Launcher > --- INVENTORY (18) --- Ion Engine Light Treads Aluminum Leg Heat Sink Improved Heat Sink High-capacity Battery (400) Small Matter Pod (50) Medium Matter Pod (100) Medium Matter Pod (82) ECM Suite Light Assault Rifle Light Assault Rifle Grenade Launcher Signal Generator Peak State ------------ > --- POWER ------------ Ion Engine > --- PROPULSION ------- Wheel Wheel > --- UTILITY ---------- Large Storage Unit High-capacity Storage Unit > --- WEAPON ----------- Particle Gun Assault Rifle > --- INVENTORY -------- Ion Engine Light Treads Aluminum Leg Aluminum Leg Wheel Wheel Wheel Flight Unit Heat Sink Improved Heat Sink Small Storage Unit High-capacity Battery Small Matter Pod Medium Matter Pod Medium Matter Pod Sensor Array ECM Suite Grenade Launcher [Rating: 10] Favorites ----------- Power Light Ion Engine Engine Light Ion Engine Propulsion Wheel Treads Light Treads Leg Aluminum Leg Wheel Wheel Utility Large Storage Unit Storage Large Storage Unit Weapon Assault Rifle Energy Gun EM Pulse Gun Ballistic Gun Assault Rifle Launcher Rocket Launcher Build | -11 -10 -10 ------- Run | Scr Mat Min Slots Evolved . | . . . Power . | . . . Propulsion . | . . . Utility . | . . . Weapon . | . . . Parts Attached 21 | 7 8 6 Power 2 | 1 . 1 Engine 2 | 1 . 1 Core . | . . . Reactor . | . . . Propulsion 10 | 2 5 3 Treads 1 | . 1 . Leg 2 | . 2 . Wheel 7 | 2 2 3 Hover . | . . . Flight . | . . . Utility 4 | 2 2 . Device . | . . . Storage 4 | 2 2 . Processor . | . . . Hackware . | . . . Protection . | . . . Artifact . | . . . Weapon 5 | 2 1 2 Energy Gun 3 | 2 . 1 Energy Cannon . | . . . Ballistic Gun 1 | . 1 . Ballistic Cannon . | . . . Launcher 1 | . . 1 Special Weapon . | . . . Impact Weapon . | . . . Slashing Weapon . | . . . Piercing Weapon . | . . . Special Melee Weapon . | . . . Unidentified Prototypes . | . . . Parts Lost 9 | . 3 6 Power 2 | . . 2 Propulsion 4 | . 1 3 Utility . | . . . Weapon 3 | . 2 1 Highest Loss Streak 5 | . 2 5 Average Slot Usage (%) 94 | . 95 92 Engine 12 | . 14 10 Leg 13 | . 21 . Wheel 13 | . 6 26 Storage 28 | . 28 28 Energy Gun 15 | . 17 10 Ballistic Gun 8 | . 6 14 Naked Turns . | . . . Heaviest Build 58 | 15 53 58 Greatest Support 20 | 20 20 20 Greatest Overweight (x) 5 | . 2 5 Average Overweight (x) 1 | . 1 2 Largest Inventory Capacity 18 | 8 18 18 Average Capacity 13 | 6 12 18 Most Carried 18 | 7 18 18 Average Carried 11 | 3 10 17 Final Capacity 18 | 8 18 18 Final Carried 18 | 7 18 14 Class Distribution -------------------- 100% | Mutant Dominant Class ---------------- Mutant | -10/Materials Mutant | -10/Mines Resources | -11 -10 -10 ----------- Run | Scr Mat Min Matter Collected 739 | 270 195 274 Remotely . | . . . Salvage Created 479 | 57 285 137 Parts 37 | 2 22 13 Haulers Intercepted 1 | . 1 . Recyclers Shooed . | . . . Parts Field Recycled . | . . . Retrieved Matter . | . . . Parts Self-Destructed . | . . . Prevented . | . . . Kills | -11 -10 -10 ------- Run | Scr Mat Min Combat Hostiles Destroyed 12 | . 6 6 Guns 9 | . 4 5 AOE 3 | . 2 1 Classes Destroyed 7 | 1 5 1 Worker 1 | . 1 . Hauler 1 | . 1 . Recycler 1 | 1 . . Watcher 2 | . 2 . Swarmer 6 | . 3 3 Grunt 5 | . 3 2 Demolisher 1 | . . 1 Best Kill Streak 5 | 1 5 3 Combat Bots Only 3 | . 3 3 Max Kills in Single Turn 2 | 1 2 1 Gunslinging . | . . . Exploded 1 | . 1 1 Melee . | . . . Uniques/NPCs Destroyed . | . . . Combat | -11 -10 -10 -------- Run | Scr Mat Min Damage Taken 986 | . 335 651 Core 271 | . 29 242 Absorbed by Shields . | . . . Core Remaining (%) 100 | 100 . . Volleys Fired 48 | 2 29 17 Largest 2 | 2 2 2 Hottest 90 | 90 90 85 Shots Fired 73 | 4 48 21 Gun 72 | 4 48 20 Cannon . | . . . Launcher 1 | . . 1 Special . | . . . Kinetic 27 | . 10 17 Thermal 21 | 2 16 3 Explosive 1 | . . 1 Electromagnetic 24 | 2 22 . Robot Hit Streak 12 | 3 8 12 Robot Miss Streak 3 | . 3 2 Penetration Max . | . . . Secondary Targets 1 | . . 1 Max Gunslinging Chain 1 | . . 1 Shots Hit Robots 47 | 3 28 16 Core Hits 26 | 2 15 9 Critical Hits . | . . . Critical Kills . | . . . Critical Parts Destroyed . | . . . Melee Attacks . | . . . Impact . | . . . Slashing . | . . . Piercing . | . . . Sneak Attacks . | . . . Combat Hostiles . | . . . Follow-up Attacks . | . . . Damage Inflicted 783 | 37 492 254 Guns 623 | 37 352 234 Cannons . | . . . Explosions 160 | . 140 20 Melee . | . . . Ramming . | . . . Kinetic 245 | . 57 188 Thermal 310 | 12 252 46 Explosive 20 | . . 20 Electromagnetic 208 | 25 183 . Impact . | . . . Slashing . | . . . Piercing . | . . . Highest Corruption . | . . . Average Corruption . | . . . Corruption Purged . | . . . Overload Shots . | . . . Overflow Damage . | . . . Projectiles . | . . . Explosions . | . . . Melee . | . . . Knockbacks . | . . . Impact . | . . . Kinetic . | . . . Secondary . | . . . Self-Inflicted Damage 51 | . 51 . Shots 1 | . 1 . Rammed . | . . . Targets Rammed . | . . . Kicked . | . . . Crushed . | . . . Highest Temperature 300 | 60 300 92 Average Temperature 108 | 33 122 52 Received Heat Transfer 201 | . 120 81 Siege Activations . | . . . Robots Corrupted . | . . . Combat Hostiles . | . . . Parts Fried 1 | . 1 . Impact Corruptions . | . . . Robots Melted . | . . . Combat Hostiles . | . . . Parts Melted 1 | . . 1 Heat Transferred 631 | 37 483 111 Parts Sabotaged . | . . . Parts Stolen . | . . . Parts Stripped . | . . . Power Chain Reactions 2 | . 2 . Missiles Intercepted . | . . . Alert | -11 -10 -10 ------- Run | Scr Mat Min Peak Influence 162 | 5 162 155 Average Influence 69 | 1 52 121 Maximum Alert Level . | . . . Low Security (%) 100 | 100 100 100 Level 1 . | . . . Level 2 . | . . . Level 3 . | . . . Level 4 . | . . . Level 5 . | . . . High Security . | . . . Max Security . | . . . Squads Dispatched 1 | . 1 . Investigation . | . . . Extermination . | . . . Reinforcement 1 | . 1 . Assault . | . . . Garrison . | . . . Intercept . | . . . Construction Impeded . | . . . Haulers Reinforced . | . . . Stealth | -11 -10 -10 --------- Run | Scr Mat Min Distress Signals 1 | . 1 . Communications Jammed . | . . . Distress Signals . | . . . Times Spotted 24 | . 10 14 Peak Tracking Total 6 | . 5 6 Tactical Retreats . | . . . Traps | -11 -10 -10 ------- Run | Scr Mat Min Traps Triggered . | . . . Indirectly . | . . . Trap Hack Attempts . | . . . Triggered . | . . . Disarmed . | . . . Reprogrammed . | . . . Reused . | . . . Traps Extracted . | . . . Installed . | . . . Triggered . | . . . Machines | -11 -10 -10 ---------- Run | Scr Mat Min Machines Disabled 2 | . . 2 Max in Single Turn 1 | . . 1 Machines Sabotaged . | . . . Garrisons Compromised . | . . . Overloaded Fab Kills . | . . . Fab Network Shutdowns . | . . . Hacking | -11 -10 -10 --------- Run | Scr Mat Min Machines Accessed 6 | . 6 . Terminals 4 | . 4 . Fabricators . | . . . Repair Stations . | . . . Recycling Units 2 | . 2 . Scanalyzers . | . . . Garrison Access . | . . . Total Hacks 19 | . 19 . Successful 12 | . 12 . Failed 7 | . 7 . Catastrophic 1 | . 1 . Database Lockouts . | . . . Manual 11 | . 11 . Terminals 13 | . 13 . Fabricators . | . . . Repair Stations . | . . . Recycling Units 6 | . 6 . Scanalyzers . | . . . Garrison Access . | . . . Terminal Hacks 6 | . 6 . Robot Analysis 1 | . 1 . Prototype ID Bank 1 | . 1 . Unreport Threat 2 | . 2 . Locate Traps 1 | . 1 . Recall Reinforcements 1 | . 1 . Fabricator Hacks . | . . . Repair Station Hacks . | . . . Recycling Unit Hacks 3 | . 3 . Report Inventory 1 | . 1 . Retrieve Components 2 | . 2 . Scanalyzer . | . . . Garrison Access Hacks . | . . . Unauthorized Hacks 3 | . 3 . Terminals 2 | . 2 . Track 2 | . 2 . Fabricators . | . . . Repair Stations . | . . . Recycling Units 1 | . 1 . Monitor 1 | . 1 . Scanalyzers . | . . . Garrison Access . | . . . Data Cores Recovered . | . . . Used . | . . . Hacking Detections 5 | . 5 . Full Trace Events . | . . . Feedback Events . | . . . Feedback Blocked . | . . . Robot Schematics Acquired . | . . . Robots Built . | . . . Matter . | . . . Time . | . . . Total Robot Build Rating . | . . . Part Schematics Acquired . | . . . Parts Built . | . . . Matter . | . . . Time . | . . . Total Part Build Rating . | . . . Parts Repaired . | . . . Time . | . . . Parts Recycled . | . . . Recycled Matter . | . . . Retrieved Matter . | . . . Retrieved Components 3 | . 3 . Parts Scanalyzed . | . . . Part Schematics Acquired . | . . . Parts Damaged . | . . . Bothacking | -11 -10 -10 ------------ Run | Scr Mat Min Used RIF Installer . | . . . Robots Hacked . | . . . Non-combat . | . . . Combat . | . . . Robot Hacks Applied . | . . . Relay Couplers Released . | . . . Robots Rewired . | . . . Allies Hacked . | . . . Hacks Repelled . | . . . Allies | -11 -10 -10 -------- Run | Scr Mat Min Total Allies . | . . . Largest Group . | . . . Highest-Rated Group . | . . . Highest-Rated Ally . | . . . Total Orders . | . . . Ally Attacks . | . . . Total Damage . | . . . Kills . | . . . Allies Corrupted . | . . . Allies Melted . | . . . Intel | -11 -10 -10 ------- Run | Scr Mat Min Robot Analysis Total 1 | . 1 . Derelict Logs Recovered . | . . . Drone Launches . | . . . Drone Recoveries . | . . . Exploration | -11 -10 -10 ------------- Run | Scr Mat Min Turns Passed 941 | 87 555 299 Spaces Moved 649 | 75 334 240 Core 3 | 3 . . Treads 3 | . 3 . Legs 221 | . 221 . Wheels 422 | 72 110 240 Hover . | . . . Flight . | . . . Fastest Speed 50 | 50 90 100 Average Speed 113 | 78 129 101 Slowest Speed 180 | 80 180 130 Overloaded Moves . | . . . Propulsion Burnouts . | . . . Robots Hopped . | . . . Cave-ins Triggered . | . . . Exploration Rate (%) 32 | 4 56 36 Regions Visited 2 Branch Regions 1 Pre-discovered Areas . | . . . Known Exits Taken . | . . . Unknown Exits Taken 2 | 1 1 . Scrap Searched . | . . . Spaces Dug . | . . . Terrain Destroyed 19 | . 5 14 Melee . | . . . Projectile . | . . . AOE 19 | . 5 14 Actions | -11 -10 -10 --------- Run | Scr Mat Min Total 784 | 98 410 276 Wait 19 | 1 16 2 Move 647 | 74 333 240 Hop . | . . . Pick Up 38 | 14 18 6 Fast Attach 1 | . . 1 Attach 14 | 7 2 5 Detach . | . . . Swap 6 | . 6 . Drop 11 | . 6 5 Fire 48 | 2 29 17 Melee . | . . . Ram . | . . . Kick . | . . . Crush . | . . . Escape Stasis . | . . . Rewire . | . . . Trap . | . . . Miscellaneous . | . . . Route ------- -11/Scrapyard -10/Materials (discovered 2 exits: [*Mat] / [*Min]) -10/Mines (discovered 1 exit: [*Mat]) History --------- Turn | Location | Event 10 | -11/Scrapyard | Discovered new exit (range 16) 88 | -11/Scrapyard | Entered Materials 312 | -10/Materials | Build established: Mutant 479 | -10/Materials | Discovered new exit (range 5) 564 | -10/Materials | Discovered new exit (range 6) 643 | -10/Materials | Entered Mines 797 | -10/Mines | Discovered new exit (range 8) 799 | -10/Mines | Met a Derelict testing a Signal Generator 805 | -10/Mines | Found Signal Generator 867 | -10/Mines | Received a Rocket Launcher from a helpful Derelict 870 | -10/Mines | Assembled infested the area 903 | -10/Mines | Core integrity fell below 50% 932 | -10/Mines | Core integrity fell below 20% 942 | -10/Mines | Destroyed by as-62798 with Assembled Blade Last Messages --------------- 00901_ The unstable cave ceiling collapses. 00902_ U-05 Engineer lays Concrete. 00904_ Wheel destroyed. 00905_ U-05 Engineer lays Concrete. 00906_ Wheel destroyed. 00906_ U-05 Engineer destroyed. 00907_ The unstable cave ceiling collapses. 00908_ Ion Engine destroyed. 00908_ T-07 Excavator destroyed. 00909_ D-53 Grenadier destroyed. 00913_ as-04502 destroyed. 00919_ The unstable cave ceiling collapses. 00921_ R-06 Scavenger destroyed. 00922_ The unstable cave ceiling collapses. 00923_ R-06 Scavenger destroyed. 00929_ The unstable cave ceiling collapses. 00938_ Wheel destroyed. 00940_ Acquired 101 matter. 00941_ The unstable cave ceiling collapses. [Achievement: Back For More] Map ----- +----------------------------------------------------+ | | | | | | | | | | | ?????????????????????????????????????????????????? | | ?????????????????????????????????################# | | ????????????????????#######??????# | | ??????????????????## ##?????# | | ?????????????###### < #?????# | | ????????###### ## #?????# """" """" | | ???????## ## #??????# """" """" | | ??????## = ####??????# """" """ | | ??????# ##?????????# | | ?????# ### ##??????????# """" """" """" | | ?????# ##?## #### ##???????????# """" """" """" | | ?????# #????####??# #????????????# """" """" """ * | | ?????##???????????# #????????????# = != | | ??????????????????# #????????????# *= | | ??????????????????# #????????????################ | | ??????????????????# #???????????????????????????# | | ??????????????????# #####????????????########???# | | ??????????????????# #???????????## ## ##### | | ??????????????????##### #?????####### != # | | ??????????????????????# ####??# # *%= | | ??????????????????????# @ #### == = | | ??????????????????????### a## !%= | | ???????????????????????# =% # !* # | | ???????????????????????# #= # # # # | | ??????????????????????# # # # # | | ??????????????????????## # % ##### # | | ???????????????????????# ##???# # | | ??????????????????????# # #????# # | | ??????????????????????## # #????# # | | ???????????????????????## #????# # | | ????????????????????????#### #???? | | ????????????????????????## # #???? | | ???????????????????????## a ##???? | | ??????????????????????## a # #### ????? | | ????????????????####### ###???##????? | | ??????????????? ##????????????? # | | ??????????????? !#????????????????? | | ????????????????## ##???????????????? | | ?????????????????## ### #???????????????? | | ??????????????????##???## #??????????????? | | ????????????????????????## #?????????????? | | ?????????????????????????# #?????????????? | | ?????????????????????????## #?????????????? | | ??????????????????????????## ##?????????????? | | ???????????????????????????# ##??????????????? | +----------------------------------------------------+ Best States ------------- Heat Dissipation 25 Energy Generation 10 Energy Capacity 250 Matter Stores 300 Matter Capacity 300 Sight Range 16 Terrain Scan Density 10 Evasion (%) 44 Recoil Reduction 1 Item Schematics ----------------- None Robot Schematics ------------------ None Fabricated ------------ Nothing Alien Tech Used ----------------- None Achievements -------------- Back For More Challenges ------------ None Game ------ Seed GravitonPropulsionUnit Manual? 0 Play Time 00:23:52 Cumulative 63.6 hours Start 2020.08.19 @ 12:56:20 End 2020.08.19 @ 13:24:32 Sessions 1 Manual Loads 0 Difficulty Rogue Special Mode None Game No. 50 Rogue 50 Adventurer 0 Explorer 0 Win Type - Total 0 Types 0/0/0/0/0/0/0 Lore% 18 Gallery% 35 Achievement% 24 Wizard Run 0 Options --------- ASCII 0 Keyboard 0 Movement Mouse Keybinds 0 Fullscreen 0 Font 16/SmallcapsGlow Map View 76x50 Tactical HUD 1 Map Filters NONE Filters NONE Steam 1 RUN: 1fbd0434-5a40-452a-83f3-515d25bb95e0